Cogmind - Beta 14 @@@ ROGUE MODE // 2024.08.19 @ 20:18:05 Player: JohnnyDongs Result: Destroyed by as-44327 with Assembled Maul Performance ------------- Evolutions (0) 0 Regions Visited (2) 400 Robots Destroyed (18) 90 Value Destroyed (452) 452 Prototype IDs (0) 0 Alien Tech Used (0) 0 Bonus (0) 0 TOTAL SCORE: 942 Bonus ------- None Cogmind --------- Core Integrity 0/250 Matter 300/300 Energy 195/250 System Corruption 0% Temperature Cool (0) Movement Walking (120) Location -10/Mines Parts ------- > --- POWER (1) -------- Ion Engine > --- PROPULSION (2) --- Aluminum Leg Aluminum Leg > --- UTILITY (2) ------ Heat Sink Improved Heat Sink > --- WEAPON (2) ------- Small Laser > --- INVENTORY (5) ---- Aluminum Leg Aluminum Leg Improved Heat Sink Medium Matter Pod (100) Peak State ------------ > --- POWER ------------ Light Nuclear Core > --- PROPULSION ------- Flight Unit Flight Unit > --- UTILITY ---------- Improved Heat Sink Structural Scanner > --- WEAPON ----------- Light Assault Rifle Light Assault Rifle > --- INVENTORY -------- (None) [Rating: 11] Favorites ----------- Power Light Ion Engine Engine Light Ion Engine Power Core Light Nuclear Core Propulsion Aluminum Leg Treads Light Treads Leg Aluminum Leg Flight Unit Flight Unit Utility Improved Heat Sink Device Improved Heat Sink Weapon Light Assault Rifle Energy Gun Small Laser Ballistic Gun Light Assault Rifle Build | -11 -10 -10 ------- Run | Yrd Mat Min Slots Evolved . | . . . Power . | . . . Propulsion . | . . . Utility . | . . . Weapon . | . . . Parts Attached 20 | 6 7 7 Power 4 | 1 2 1 Engine 3 | 1 1 1 Core 1 | . 1 . Reactor . | . . . Propulsion 9 | 2 3 4 Treads 2 | 2 . . Leg 4 | . . 4 Wheel . | . . . Hover . | . . . Flight 3 | . 3 . Utility 3 | . 2 1 Device 3 | . 2 1 Storage . | . . . Processor . | . . . Hackware . | . . . Protection . | . . . Artifact . | . . . Weapon 4 | 3 . 1 Energy Gun 2 | 1 . 1 Energy Cannon . | . . . Ballistic Gun 2 | 2 . . Ballistic Cannon . | . . . Launcher . | . . . Special Weapon . | . . . Impact Weapon . | . . . Slashing Weapon . | . . . Piercing Weapon . | . . . Special Melee Weapon . | . . . Unidentified Prototypes . | . . . Parts Lost 8 | . 2 6 Power 2 | . 1 1 Propulsion 3 | . 1 2 Utility 1 | . . 1 Weapon 2 | . . 2 Highest Loss Streak 4 | . 2 4 To Critical Strikes . | . . . Average Slot Usage (%) 76 | . 82 71 Engine 3 | . 7 . Core 2 | . 5 . Treads 5 | . 12 . Leg 14 | . . 27 Flight 7 | . 14 . Device 20 | . 12 27 Ballistic Gun 19 | . 28 12 Peak Build Rating 11 | 5 11 11 Average Rating 7 | 3 7 7 On Entrance 5 | . 5 11 Naked Turns . | . . . Heaviest Build 9 | 5 9 9 Greatest Support 40 | 40 40 20 Greatest Overweight (x) 1 | . 1 1 Average Overweight (x) . | . . . Largest Inventory Capacity 5 | 5 5 5 Average Capacity 5 | 5 5 5 Most Carried 5 | . 3 5 Average Carried 2 | . . 4 Final Capacity 5 | 5 5 5 Final Carried 4 | . 3 4 Class Distribution -------------------- 71% | Scavenger-Mutant 28% | Mutant Dominant Class ---------------- Mutant | -10/Materials Scavenger-Mutant | -10/Mines Resources | -11 -10 -10 ----------- Run | Yrd Mat Min Matter Collected 483 | 260 142 81 Remotely . | . . . Salvage Created 557 | . 311 246 Parts 39 | . 23 16 Haulers Intercepted . | . . . Recyclers Shooed . | . . . Parts Field Recycled . | . . . Retrieved Matter . | . . . Parts Self-Destructed . | . . . Prevented . | . . . Kills | -11 -10 -10 ------- Run | Yrd Mat Min Combat Hostiles Destroyed 16 | . 10 6 Guns 16 | . 10 6 Classes Destroyed 3 | . 3 . Worker 2 | . 2 . Swarmer 5 | . 5 . Grunt 11 | . 5 6 Best Kill Streak 5 | . 5 2 Combat Bots Only 4 | . 4 2 Max Kills in Single Turn 1 | . 1 1 Gunslinging . | . . . Exploded . | . . . Melee . | . . . Uniques/NPCs Destroyed . | . . . Combat | -11 -10 -10 -------- Run | Yrd Mat Min Hostile Shots Fired 120 | . 51 69 Missed 32 | . 16 16 Damage Taken 997 | . 348 649 Core 262 | . 68 194 Absorbed by Shields . | . . . Core Remaining (%) 100 | 100 . . Volleys Fired 89 | . 46 43 Largest 2 | . 2 2 Hottest 40 | . 40 40 Shots Fired 143 | . 92 51 Gun 143 | . 92 51 Cannon . | . . . Launcher . | . . . Special . | . . . Kinetic 125 | . 92 33 Thermal 18 | . . 18 Explosive . | . . . Electromagnetic . | . . . Robot Hit Streak 14 | . 8 14 Robot Miss Streak 5 | . 2 5 Penetration Max . | . . . Secondary Targets . | . . . Shots Hit Robots 87 | . 53 34 Core Hits 45 | . 28 17 Critical Kills 1 | . 1 . Critical Parts Destroyed . | . . . Critical Strikes 1 | . 1 . Destroy 1 | . 1 . Melee Attacks . | . . . Impact . | . . . Slashing . | . . . Piercing . | . . . Sneak Attacks . | . . . Combat Hostiles . | . . . Follow-up Attacks . | . . . Damage Inflicted 788 | . 449 339 Guns 781 | . 449 332 Cannons . | . . . Explosions . | . . . Melee . | . . . Ramming 7 | . . 7 Kinetic 642 | . 449 193 Thermal 139 | . . 139 Explosive . | . . . Electromagnetic . | . . . Impact . | . . . Slashing . | . . . Piercing . | . . . Highest Corruption . | . . . Average Corruption . | . . . Corruption Purged . | . . . Corruption Blocked . | . . . Overload Shots . | . . . Overflow Damage . | . . . Projectiles . | . . . Explosions . | . . . Melee . | . . . Knockbacks . | . . . Impact . | . . . Kinetic . | . . . Secondary . | . . . Self-Inflicted Damage . | . . . Shots . | . . . Rammed 1 | 1 . . Targets Rammed 3 | 1 . 2 Kicked 2 | . . 2 Crushed . | . . . Highest Temperature 17 | . 17 15 Average Temperature 6 | . 6 8 Received Heat Transfer 510 | . 132 378 Siege Activations . | . . . Robots Corrupted . | . . . Combat Hostiles . | . . . Parts Fried . | . . . Impact Corruptions . | . . . Robots Melted . | . . . Combat Hostiles . | . . . Parts Melted 2 | . . 2 Heat Transferred 325 | . . 325 Parts Sabotaged . | . . . Parts Stolen . | . . . Parts Stripped . | . . . Power Chain Reactions . | . . . Alert | -11 -10 -10 ------- Run | Yrd Mat Min Peak Influence 175 | . 175 45 Initial 15 | . . 15 Average 41 | . 57 31 Maximum Alert Level . | . . . Low Security (%) 100 | 100 100 100 Level 1 . | . . . Level 2 . | . . . Level 3 . | . . . Level 4 . | . . . Level 5 . | . . . High Security . | . . . Max Security . | . . . Squads Dispatched 2 | . 2 . Investigation . | . . . Extermination . | . . . Reinforcement 2 | . 2 . Assault . | . . . Garrison . | . . . Intercept . | . . . Searches Triggered . | . . . Construction Impeded . | . . . Haulers Reinforced . | . . . Active Scanning Responses . | . . . Cargo Convoy Interrupts . | . . . Stealth | -11 -10 -10 --------- Run | Yrd Mat Min Distress Signals 3 | . 2 1 Communications Jammed . | . . . Distress Signals . | . . . Times Spotted 26 | . 19 7 Peak Tracking Total 5 | . 5 3 Tactical Retreats . | . . . Traps | -11 -10 -10 ------- Run | Yrd Mat Min Traps Triggered . | . . . Indirectly . | . . . Trap Hack Attempts . | . . . Triggered . | . . . Disarmed . | . . . Reprogrammed . | . . . Reused . | . . . Traps Extracted . | . . . Installed . | . . . Triggered . | . . . Machines | -11 -10 -10 ---------- Run | Yrd Mat Min Machines Disabled . | . . . Max in Single Turn . | . . . Machines Repaired . | . . . Machines Dismantled . | . . . Machines Sabotaged . | . . . Overloaded Fab Kills . | . . . Hacking | -11 -10 -10 --------- Run | Yrd Mat Min Machines Accessed 4 | . 4 . Terminals 3 | . 3 . Fabricators . | . . . Repair Stations . | . . . Recycling Units 1 | . 1 . Scanalyzers . | . . . Garrison Access . | . . . Total Hacks 9 | . 9 . Successful 3 | . 3 . Failed 6 | . 6 . Catastrophic 2 | . 2 . Database Lockouts . | . . . Manual 4 | . 4 . Terminals 8 | . 8 . Fabricators . | . . . Repair Stations . | . . . Recycling Units 1 | . 1 . Scanalyzers . | . . . Garrison Access . | . . . Terminal Hacks 2 | . 2 . Unreport Threat 1 | . 1 . Investigation Status 1 | . 1 . Fabricator Hacks . | . . . Repair Station Hacks . | . . . Recycling Unit Hacks 1 | . 1 . Report Inventory 1 | . 1 . Scanalyzer . | . . . Garrison Access Hacks . | . . . Unauthorized Hacks . | . . . Terminals . | . . . Fabricators . | . . . Repair Stations . | . . . Recycling Units . | . . . Scanalyzers . | . . . Garrison Access . | . . . Data Cores Recovered . | . . . Used . | . . . Hacking Detections 3 | . 3 . Full Trace Events . | . . . Feedback Events . | . . . Feedback Blocked . | . . . Robot Schematics Acquired . | . . . Robots Built . | . . . Authchips . | . . . Time . | . . . Total Robot Build Rating . | . . . Part Schematics Acquired . | . . . Parts Built . | . . . Authchips . | . . . Time . | . . . Total Part Build Rating . | . . . Parts Repaired . | . . . Time . | . . . Parts Recycled . | . . . Recycled Matter . | . . . Retrieved Matter . | . . . Retrieved Components . | . . . Parts Scanalyzed . | . . . Part Schematics Acquired . | . . . Parts Damaged . | . . . Bothacking | -11 -10 -10 ------------ Run | Yrd Mat Min Used RIF Installer . | . . . Robots Hacked . | . . . Non-combat . | . . . Combat . | . . . Robot Hacks Applied . | . . . Relay Couplers Released . | . . . Fabnet Peak Effective % . | . . . Robots Rewired . | . . . Allies Hacked . | . . . Hacks Repelled . | . . . Allies | -11 -10 -10 -------- Run | Yrd Mat Min Total Allies . | . . . Largest Group . | . . . Highest-Rated Group . | . . . Highest-Rated Ally . | . . . Total Orders . | . . . Ally Attacks . | . . . Total Damage . | . . . Kills . | . . . Allies Corrupted . | . . . Allies Melted . | . . . Intel | -11 -10 -10 ------- Run | Yrd Mat Min Robot Analysis Total . | . . . Derelict Logs Recovered 1 | . . 1 Drone Launches . | . . . Drone Recoveries . | . . . Exploration | -11 -10 -10 ------------- Run | Yrd Mat Min Turns Passed 1216 | 51 534 631 Spaces Moved 698 | 32 313 353 Core 9 | 9 . . Treads 130 | 23 107 . Legs 348 | . . 348 Wheels . | . . . Hover . | . . . Flight 211 | . 206 5 Fastest Speed 37 | 50 37 117 Average Speed 120 | 129 119 119 Slowest Speed 160 | 160 160 120 Overloaded Moves . | . . . Propulsion Burnouts . | . . . Robots Hopped 1 | . 1 . Cave-ins Triggered . | . . . Exploration Rate (%) 46 | 4 61 73 Regions Visited 2 Branch Regions 1 Pre-discovered Areas 1 | . . 1 Known Exits Taken . | . . . Unknown Exits Taken 2 | 1 1 . Scrap Searched . | . . . Spaces Dug . | . . . Terrain Destroyed . | . . . Melee . | . . . Projectile . | . . . AOE . | . . . Terrain Rammed . | . . . Walls Destroyed . | . . . Machines Disabled . | . . . Actions | -11 -10 -10 --------- Run | Yrd Mat Min Total 951 | 39 397 515 Wait 130 | . 26 104 Move 695 | 32 310 353 Hop 1 | . 1 . Pick Up 8 | . 4 4 Fast Attach 16 | 6 6 4 Attach 2 | . 1 1 Detach . | . . . Swap 2 | . . 2 Drop 6 | 1 3 2 Fire 89 | . 46 43 Melee . | . . . Ram . | . . . Kick 2 | . . 2 Crush . | . . . Escape Stasis . | . . . Rewire . | . . . Trap . | . . . Miscellaneous . | . . . Route ------- -11/Scrapyard -10/Materials (discovered 2 exits: [*Mat] / [*Min]) -10/Mines (discovered 1 exit: [*Mat]) History --------- Turn | Location | Event 6 | -11/Scrapyard | Discovered new exit (range 15) 52 | -11/Scrapyard | Entered Materials 114 | -10/Materials | Discovered new exit (range 12) 322 | -10/Materials | Build established: Mutant 360 | -10/Materials | Discovered new exit (range 16) 586 | -10/Materials | Entered Mines 590 | -10/Mines | Discovered new exit (range 13) 602 | -10/Mines | Core integrity fell below 50% 653 | -10/Mines | Build established: Scavenger-Mutant 692 | -10/Mines | Learned location of Storage (-9) 998 | -10/Mines | Excavation squad dispatched 998 | -10/Mines | A large section of the Mines collapsed 1159 | -10/Mines | Core integrity fell below 20% 1184 | -10/Mines | Lost 4 parts (2n1u1w) 1214 | -10/Mines | Received a Rocket Launcher from a helpful Derelict 1217 | -10/Mines | Destroyed by as-44327 with Assembled Maul Last Messages --------------- 01208_ A derelict emerges from the shadows. 01209_ IG-DLY(g): "Some of my friends down here think you need a mining laser when you travel the depths." 01210_ IG-DLY(g): "You know what I say? NO!" 01211_ IG-DLY(g): "Everyone knows a good old rocket launcher goes a long way." 01212_ IG-DLY(g): "Need to get rid of a swarm? Done. Need a big hole in the wall? Done." 01212_ T-07 Excavator system corrupted by crushing effect. 01213_ T-07 Excavator system terminally corrupted. 01213_ IG-DLY(g): "Need a small hole in the wall? Leave that to the mining laser wimps, I say!" 01214_ IG-DLY(g): "Would you like a rocket launcher? I know I would if I were you, so I'm going to lend you mine." 01214_ IG-DLY(g) slips back into the shadows. Map ----- +----------------------------------------------------+ | #### #### """ ##????????????????? | | ### #### ##### """ ###????????????????? | | ## #### ####### ###????????????????? | | ## ## ######## ###?????????????????? | | ## ####### ###?????????????????? | | # ###### ##??????????????????? | | """ ### ##### ##??????????????????? | | """ ###### ##### ###??????????????????? | | """ ######## #### ####??????????????????? | | ###??#### ### ###???????????????????? | | # ## ##????#### ##????????????????????? | | ###### ##?????#### ##????????????????????? | | ###### ##??????###########????????????????????? | | ????## ##???????######### ????????????????????? | | ???#### ##?????????????????????????????????????? | | ???##### ##?????????????????????????????????????? | | ???## ########??###??????????????????????????? | | ???## ## #########?# ??????????????????????????? | | ???## ### ### ##### #??????????????????????????? | | ???## ## # #### #??????????????????????????? | | ??????## # " ### ######?????????????????????? | | ??????######## % |###%## ###????????????????????? | | ??????########= =!%*== ; ##????????????????????? | | ??????????### %|!! ##????????????????????? | | ??????????## ! *#### ##????????????????????? | | ??????????### *%#### a@ ##????????????????????? | | ??????????############ ##????????????????????? | | ???????????#########?# u #????????????????????? | | ?????????????????????# #???????????????????? | | ?????????????????????## #??????????????????? | | ??????????????????????#### #??????????????????? | | ??????????????????????????# ##??????????????????? | | ???????????????????????????###???????????????????? | | ?????????????????????????????????????????????????? | | | | | | | | | | | | | | | | | | | | | | | | | | | | | | | | | +----------------------------------------------------+ Best States ------------- Heat Dissipation 49 Energy Generation 14 Energy Capacity 250 Matter Stores 300 Matter Capacity 300 Sight Range 16 Terrain Scan Density 10 Evasion (%) 62 Recoil Reduction 2 Item Schematics ----------------- None Robot Schematics ------------------ None Fabricated ------------ Nothing Alien Tech Used ----------------- None Achievements -------------- None Challenges ------------ None Game ------ Seed SniperCombatShifter Manual? 0 Play Time 00:14:46 Cumulative 19.8 hours Start 2024.08.19 @ 20:05:13 End 2024.08.19 @ 20:18:05 Sessions 1 Manual Loads 0 Difficulty Rogue Special Mode None Game No. 16 Rogue 16 Adventurer 0 Explorer 0 Win Type - Total 0 Types 0/0/0/0/0/0/0/0/0 Lore% 11 Gallery% 20 Achievement% 22 Wizard Run 0 Options --------- Layout 1 ASCII 0 Keyboard 0 Movement Numpad Keybinds 0 Fullscreen 1 Font 24/Smallcaps Map View 50x35 Zoom Use 0% Tactical HUD 1 Map Filters NONE Filters NONE Steam 1 RUN: d32895c8-7b6a-447c-ba4c-f830074ba855